bitfinex-derivatives/quotes_ETHF0:USTF0_20250730
["timestamp","ask_amount","ask_price","bid_price","bid_amount"]
[1753907210900,18.741,3777.2,3777.1,6.57597]
[1753907211305,6.2035,3777.5,3777.4,6.57593]
[1753907211808,18.736,3777.6,3777.4,3.01473]
[1753907212110,24.9395,3777.6,3777.5,1.5246]
[1753907212403,24.9395,3777.6,3776.7,4.28202]
[1753907212404,2.5454,3776.8,3776.7,4.28202]
[1753907212601,3.1082,3776.8,3776.7,6.57602]
[1753907212797,6.73305,3777.3,3777.2,4.6256]
[1753907213003,6.2035,3776.9,3776.8,3.906]
[1753907213404,6.2035,3776.9,3776.8,5.1732]
[1753907213607,6.2035,3776.9,3776.8,6.0464]
[1753907214808,0.52957,3777.2,3776.3,0.8732]
[1753907214809,4.9112,3776.7,3776.3,0.8732]
[1753907215107,6.2035,3776.3,3776.2,7.4025]
[1753907215302,6.2035,3776.3,3776.2,8.3631]
[1753907215508,6.2035,3776.3,3776.2,7.8334]
[1753907215703,5.3256,3776.3,3776.2,9.2542]
[1753907216009,1.6203,3776.3,3776.2,9.2542]
[1753907216210,4.0333,3776.3,3776.2,9.2542]
[1753907216604,5.3256,3776.3,3776.2,9.2542]
[1753907216800,2.04222,3776.8,3776.7,1.5246]
[1753907217006,2.04222,3776.8,3776.7,4.6256]
[1753907217007,4.0333,3776.8,3776.7,4.6256]
[1753907217307,4.0333,3776.8,3776.2,4.53203]
[1753907217308,2.3658,3776.7,3776.5,0.52965]
[1753907217506,6.2035,3776.6,3776.5,2.05425]
[1753907218011,6.2035,3776.6,3776.5,4.19465]
[1753907218606,6.2035,3776.6,3776.5,2.05425]
[1753907218909,6.2035,3776.6,3776.5,6.79925]
[1753907220707,4.17416,3776.5,3776.2,3.73749]
[1753907220911,6.1515,3776.3,3776.2,3.73749]
[1753907221411,6.1515,3776.3,3776.2,3.2078]
[1753907221610,6.1515,3776.0,3775.9,2.00553]
[1753907222006,4.76794,3775.9,3775.8,3.2078]
[1753907222212,4.76794,3775.9,3774.8,4.21786678]
[1753907222213,2.507,3774.9,3774.8,4.21786678]
[1753907222407,3.0071,3774.9,3774.8,6.64866678]
[1753907222708,1.6329,3775.3,3774.8,6.64866678]
[1753907222709,5.5421,3775.3,3775.2,4.38874]
[1753907222914,5.5421,3775.3,3775.2,6.2513]
[1753907223610,1.0321,3775.9,3775.8,4.53355]
[1753907224112,1.0321,3775.9,3775.8,6.78105]
[1753907224912,18.726,3776.1,3776.0,2.99663]
[1753907225116,20.3309,3776.1,3776.0,6.78103]
[1753907225316,22.6143,3776.1,3776.0,6.78103]
[1753907226115,24.2681,3776.1,3776.0,6.2513]
[1753907226316,24.2681,3776.1,3776.0,4.7144]
[1753907226515,27.4759,3776.1,3776.0,4.7144]
[1753907226906,24.2681,3776.1,3776.0,4.7144]
[1753907227113,5.5421,3775.5,3775.4,3.8205]
[1753907227317,1.6049,3775.5,3775.4,4.35031]
[1753907227520,3.0071,3775.5,3775.4,6.78111]
[1753907228006,0.8812,3775.8,3775.4,6.78111]
[1753907228213,1.6049,3775.8,3775.7,6.2513]
[1753907228514,2.3043,3775.7,3775.6,0.52977]
[1753907228718,5.5422,3775.7,3775.6,6.78107]
[1753907229911,1.6049,3775.4,3775.3,2.4669]
[1753907230119,4.7904,3775.4,3775.3,6.2513]
[1753907230419,0.52987,3775.0,3774.8,0.39736678]
[1753907230615,5.5422,3774.9,3774.8,1.25286678]
[1753907230910,5.5422,3774.9,3774.8,4.12066678]
[1753907231113,5.5422,3774.9,3774.8,5.11176678]
[1753907231711,3.0071,3774.9,3774.8,6.64866678]
[1753907232108,5.5422,3774.9,3774.8,1.87316678]
[1753907232312,5.5422,3774.9,3774.8,3.22676678]
[1753907232715,3.8883,3774.9,3774.8,6.64866678]
[1753907233022,1.6049,3775.1,3775.0,5.92566]
[1753907233217,1.6049,3775.1,3775.0,6.2513]
[1753907233516,5.5422,3775.1,3775.0,6.2513]
[1753907233717,2.507,3774.9,3774.8,1.87316678]
[1753907234013,2.507,3774.9,3774.8,3.22676678]
[1753907234014,5.5422,3774.9,3774.8,3.22676678]
[1753907234317,5.5422,3774.9,3774.8,6.64866678]
[1753907235611,5.5422,3774.9,3774.8,4.21786678]
[1753907235812,5.5422,3774.9,3774.8,1.87316678]
[1753907236013,5.5422,3774.9,3774.8,5.11176678]
[1753907236217,5.5422,3774.9,3774.8,6.64866678]
[1753907236812,3.8883,3774.9,3774.8,6.64866678]
[1753907237322,1.6049,3775.2,3775.1,6.78115]
[1753907237623,5.5422,3775.2,3775.1,4.7144]
[1753907237914,0.52983,3775.3,3774.8,0.39736678]
[1753907237915,5.5422,3775.0,3774.9,4.25317]
[1753907238418,5.5422,3775.0,3774.9,6.78117]
[1753907239313,5.5422,3775.0,3774.9,6.2513]
[1753907239510,3.03688,3774.9,3774.8,2.40305678]
[1753907239716,6.07208,3774.9,3774.8,1.87316678]
[1753907239920,6.07208,3774.9,3774.8,3.22676678]
[1753907240121,6.07208,3774.9,3774.8,5.11176678]
[1753907240317,6.07208,3774.9,3774.8,1.87316678]
[1753907242015,6.07208,3774.9,3774.8,1.25286678]
[1753907242219,6.07208,3774.9,3774.8,0.39736678]
[1753907244717,5.5422,3774.9,3774.8,0.39736678]
[1753907246321,5.5422,3774.9,3774.8,6.64866678]
[1753907246822,1.6049,3774.9,3774.8,6.64866678]
[1753907247216,3.8883,3775.2,3775.1,2.4669]
[1753907247416,22.6023,3775.2,3775.1,6.2513]
[1753907248023,23.3541,3775.2,3775.1,6.2513]
[1753907248218,21.7211,3775.2,3775.1,6.2513]
[1753907248419,20.3189,3775.2,3775.1,6.2513]
[1753907248820,21.7743,3775.2,3775.1,6.2513]
[1753907249527,19.7461,3775.2,3775.1,6.2513]
[1753907249831,21.77,3775.2,3775.1,6.2513]
[1753907250121,1.09837,3775.0,3774.9,1.507]
[1753907250330,2.4538,3774.9,3774.8,0.39736678]
[1753907250722,5.5264,3774.9,3774.8,1.28686678]
[1753907250919,5.5264,3774.9,3774.8,1.90436678]
[1753907251417,5.5264,3774.9,3774.8,1.28686678]
[1753907251621,5.5264,3774.9,3774.8,0.39736678]
[1753907252422,1.5759,3775.0,3774.9,6.1301]
[1753907253025,18.714,3775.2,3775.1,6.1301]
[1753907253923,18.708,3775.5,3775.4,3.00351]
[1753907254326,20.2839,3775.5,3775.4,2.4737]
[1753907254624,20.2839,3775.5,3775.4,6.1301]
[1753907254816,18.708,3775.5,3775.4,6.1301]
[1753907256322,0.7523,3776.2,3775.8,0.52974]
[1753907256523,19.94811037,3776.1,3776.0,6.1301]
[1753907256730,24.01911037,3776.1,3776.0,6.1301]
[1753907256924,25.47451037,3776.1,3776.0,6.1301]
[1753907257324,25.61070189,3776.1,3776.0,0.8895]
[1753907257730,5.5264,3775.4,3775.3,4.6943]
[1753907257928,18.704,3775.6,3775.5,2.4737]
[1753907258130,18.704,3775.6,3775.5,6.1301]
[1753907258328,0.8649,3776.7,3776.3,0.52967]
[1753907258528,0.8649,3776.7,3775.7,2.17892]
[1753907258529,1.5759,3776.7,3776.6,6.1301]
[1753907258728,2.28838604,3776.7,3776.6,6.1301]
[1753907258929,3.74378604,3776.7,3776.6,6.1301]
[1753907259134,3.0313,3776.7,3776.6,6.1301]
[1753907259334,1.71945256,3776.7,3776.6,6.1301]
[1753907259530,19.5679,3776.9,3776.7,0.52963]
[1753907259735,20.2789,3776.9,3776.8,6.1301]
[1753907259930,20.41504276,3776.9,3776.8,6.1301]
[1753907260132,24.36554276,3776.9,3776.8,1.507]
[1753907260435,25.07514351,3776.9,3776.8,1.507]
[1753907260828,24.36354276,3776.9,3776.8,1.507]
[1753907261134,6.05604,3776.6,3776.5,3.2078]
[1753907261335,2.4538,3776.3,3776.2,4.6943]
[1753907261631,5.5264,3776.3,3776.2,6.1301]
[1753907262731,1.0074,3776.0,3775.9,7.54233]
[1753907263038,1.0074,3776.0,3775.9,8.43183]
[1753907263234,1.0074,3776.0,3775.9,9.01313]
[1753907263429,19.79816,3776.5,3776.4,0.6175]
[1753907263633,20.80556,3776.5,3776.4,2.4737]
[1753907263834,0.7523,3777.3,3776.7,1.3661]
[1753907264030,2.18874,3777.4,3776.3,3.2078]
[1753907264031,22.56770378,3777.2,3777.1,2.4737]
[1753907264337,22.56770378,3777.2,3777.1,0.8895]
[1753907264641,6.056,3776.9,3776.8,4.6943]
[1753907264833,24.751,3776.9,3776.8,4.6943]
[1753907265428,24.2214,3776.9,3776.8,6.1301]
[1753907265938,18.695,3776.9,3776.8,6.1301]
[1753907267032,0.5685,3777.4,3777.3,2.38573]
[1753907267233,3.2078,3777.5,3777.4,2.4737]
[1753907267739,0.5685,3777.5,3777.4,9.3379]
[1753907268143,1.5759,3777.5,3777.4,9.3379]
[1753907268435,3.0313,3777.5,3777.4,9.3379]
[1753907268640,18.691,3777.6,3777.5,3.00321]
[1753907268841,18.691,3777.6,3777.5,6.65961]
[1753907269640,22.5872,3777.6,3777.5,6.1301]
[1753907270137,24.2174,3777.6,3777.5,6.1301]
[1753907270641,22.5872,3777.6,3777.5,6.1301]
[1753907271141,5.5264,3777.6,3777.5,6.1301]
[1753907271537,3.0313,3777.7,3777.6,3.3282]
[1753907271742,21.7163,3777.7,3777.6,6.6596]
[1753907272039,23.3335,3777.7,3777.6,6.1301]
[1753907276439,24.2114,3777.7,3777.6,6.1301]
[1753907277842,21.8911,3777.7,3777.6,6.1301]
[1753907278043,18.685,3777.7,3777.6,6.1301]
[1753907278440,20.2609,3777.7,3777.6,6.1301]
[1753907278845,21.7837,3777.7,3777.6,6.1301]
[1753907279747,19.6924,3777.7,3777.6,6.1301]
[1753907280041,18.685,3777.7,3777.6,6.1301]
[1753907280248,0.9204,3778.9,3778.3,0.5294]
[1753907280439,5.7052,3778.9,3778.8,6.1409]
[1753907280636,5.7052,3778.9,3778.8,2.7689]
[1753907280843,2.5159,3778.5,3778.4,2.174]
[1753907281036,19.7025,3778.7,3778.6,2.4496]
[1753907281236,24.3792,3778.7,3778.6,6.1409]
[1753907281441,24.3792,3778.7,3778.6,1.4649]
[1753907282550,24.3782,3778.7,3778.6,1.4649]
[1753907282944,24.3782,3778.7,3778.6,2.7689]
[1753907283745,24.3782,3778.7,3778.6,4.6236]
[1753907284744,24.3782,3778.7,3778.6,6.1409]
[1753907284947,21.8433,3778.7,3778.6,6.1409]
[1753907285145,24.3782,3778.7,3778.6,6.1409]
[1753907286648,2.5159,3778.3,3778.2,5.15301]
[1753907286847,5.7052,3778.3,3778.2,6.67031]
[1753907287350,5.7052,3778.3,3778.2,6.1409]
[1753907287544,5.7052,3777.9,3777.8,2.7689]
[1753907287751,5.7052,3777.9,3777.8,6.1409]
[1753907288049,0.52938,3778.5,3778.3,0.5294]
[1753907288254,20.22188,3778.5,3778.4,6.1409]
[1753907288547,21.8343,3778.5,3778.4,6.1409]
[1753907288752,20.3115,3778.5,3778.4,6.1409]
[1753907288956,19.283,3778.5,3778.4,6.1409]
[1753907289348,23.5008,3778.5,3778.4,6.1409]
[1753907289658,5.7052,3778.4,3778.3,1.4649]
[1753907289949,18.664,3778.5,3778.4,6.67029]
[1753907290364,4.0907,3778.9,3778.8,6.1409]
[1753907290661,22.7517,3778.9,3778.8,6.1409]
[1753907290848,23.4978,3778.9,3778.8,6.1409]
[1753907291048,24.3662,3778.9,3778.8,6.1409]
[1753907292952,20.3085,3778.9,3778.8,6.1409]
[1753907293356,24.3662,3778.9,3778.8,6.1409]
[1753907294954,18.661,3778.9,3778.8,6.1409]
[1753907295652,20.3085,3778.9,3778.8,6.1409]
[1753907295853,21.8313,3778.9,3778.8,6.1409]
[1753907296454,3.1703,3778.9,3778.8,6.1409]
[1753907298247,5.714,3778.9,3778.8,6.1409]
[1753907298750,5.714,3778.9,3778.6,3.2078]
[1753907298956,5.714,3778.7,3778.6,0.8757]
[1753907299554,5.714,3778.7,3778.6,1.4649]
[1753907299745,5.714,3778.7,3778.6,2.7689]
[1753907300553,2.5159,3778.5,3778.3,0.52939]
[1753907300753,5.714,3778.4,3778.3,1.99429]
[1753907300959,5.714,3778.4,3778.3,6.67029]
[1753907301652,3.2078,3779.0,3778.6,3.40726]
[1753907301853,8.9218,3779.0,3778.9,6.1409]
[1753907302256,5.714,3779.0,3778.9,6.1409]
[1753907302563,18.649,3779.1,3779.0,2.9789]
[1753907302761,18.649,3779.1,3779.0,6.6702]
[1753907303059,20.2965,3779.1,3779.0,6.6702]
[1753907303353,0.52935,3778.7,3778.5,3.2078]
[1753907303557,5.714,3778.6,3778.5,2.86426]
[1753907303754,5.714,3778.6,3778.5,6.07206]
[1753907303948,5.714,3778.6,3778.5,7.05676]
[1753907304261,4.0387,3778.6,3778.5,9.3487]
[1753907304449,5.714,3778.6,3778.5,7.8314]
[1753907304654,5.714,3778.6,3778.5,4.6236]
[1753907305160,5.714,3778.6,3778.5,3.7536]
[1753907305757,5.714,3778.6,3778.5,6.1409]
[1753907305950,4.0387,3778.4,3778.3,2.97899]
[1753907306257,0.9204,3778.7,3778.6,0.52936]
[1753907306558,5.714,3778.7,3778.6,4.6236]
[1753907306758,3.1703,3778.1,3778.0,7.1747]
[1753907307153,5.714,3778.1,3778.0,7.37614]
[1753907307353,5.714,3778.1,3778.0,6.8467]
[1753907307662,5.714,3778.1,3778.0,3.2078]
[1753907307862,4.1912,3778.1,3778.0,9.3487]
[1753907308057,1.6475,3778.3,3778.2,2.97901]
[1753907308256,5.714,3778.3,3778.2,2.4496]
[1753907308963,5.714,3778.3,3778.2,4.6537]
[1753907309158,5.5987,3778.1,3778.0,3.2078]
[1753907309363,2.5027,3777.7,3777.6,4.6795]
[1753907309555,5.5987,3777.7,3777.6,5.209]
[1753907309751,5.5987,3777.7,3777.6,6.7054]
[1753907310264,5.5987,3777.7,3777.5,0.52951]
[1753907310460,5.5987,3777.6,3777.5,3.27821]
[1753907310760,5.5987,3777.6,3777.5,6.70541]
[1753907311363,5.5987,3777.6,3777.5,1.4579]
[1753907311656,5.5987,3777.6,3777.5,2.7487]
[1753907311855,5.5987,3777.6,3777.5,3.7662]
[1753907312054,5.5987,3777.6,3777.4,3.73732]
[1753907312055,6.12821,3777.5,3777.4,3.2078]
[1753907312257,2.5027,3777.2,3777.1,0.8541]
[1753907312555,21.67326,3777.2,3777.0,0.52958]
[1753907312760,2.5027,3777.0,3776.9,3.27829]
[1753907313061,6.12829,3777.0,3776.7,0.52962]
[1753907313356,3.096,3776.8,3776.6,1.82043]
[1753907313564,4.0051,3776.7,3776.6,6.70553]
[1753907313753,1.6206,3776.9,3776.8,2.40121]
[1753907313957,1.6206,3776.9,3776.8,6.70551]
[1753907314460,1.97242,3777.5,3777.4,6.1759]
[1753907314658,24.01512,3777.5,3777.4,6.1759]
[1753907314859,24.76922,3777.5,3777.4,6.1759]
[1753907315161,24.2397,3777.5,3777.4,6.1759]
[1753907315353,1.6206,3777.5,3777.4,6.1759]
[1753907315560,22.6025,3777.5,3777.4,6.1759]
[1753907315766,24.2387,3777.5,3777.4,6.1759]
[1753907316257,24.2387,3777.5,3777.4,3.7662]
[1753907316458,24.2387,3777.5,3777.1,2.2041]
[1753907316658,5.5987,3777.2,3777.1,3.662]
[1753907317160,5.5987,3777.2,3776.6,3.2078]
[1753907317161,2.5027,3777.0,3776.9,3.662]
[1753907317359,5.5987,3777.0,3776.9,4.19159]
[1753907317858,5.5987,3777.0,3776.9,6.70549]
[1753907318758,18.64,3777.1,3776.9,6.70549]
[1753907319067,18.64,3777.1,3777.0,8.0929]
[1753907319265,18.64,3777.1,3777.0,9.3837]
[1753907320157,20.2606,3777.1,3777.0,9.3837]
[1753907320361,21.763,3777.1,3777.0,9.3837]
[1753907320555,21.763,3777.1,3777.0,6.1759]
[1753907321063,22.6025,3777.1,3777.0,6.1759]
[1753907322059,20.2606,3777.1,3777.0,9.3837]
[1753907322862,21.763,3777.1,3777.0,6.1759]
[1753907323067,24.2387,3777.1,3777.0,6.1759]
[1753907323361,2.5027,3776.8,3776.7,5.20912]
[1753907323570,2.5027,3776.8,3776.7,1.4579]
[1753907323571,6.12831,3776.8,3776.7,1.4579]
[1753907324163,6.12831,3776.8,3776.7,2.7487]
[1753907324362,6.12837,3776.5,3776.3,0.52968]
[1753907324570,3.096,3776.3,3775.8,3.2078]
[1753907324759,5.5987,3775.9,3775.8,4.6657]
[1753907324958,24.2347,3775.9,3775.8,4.6657]
[1753907325164,24.2347,3775.9,3775.8,3.2078]
[1753907325959,24.2347,3775.9,3775.8,4.0619]
[1753907326163,24.76444,3775.9,3775.8,4.0619]
[1753907326657,24.2347,3775.9,3775.8,3.2078]
[1753907327871,24.2347,3775.9,3775.8,7.8873]
[1753907328369,24.2347,3775.9,3775.8,6.974]
[1753907328566,24.2347,3775.9,3775.8,4.0619]
[1753907328772,5.5987,3775.6,3775.5,1.4579]
[1753907329072,24.2347,3775.6,3775.5,6.1759]
[1753907329476,3.8112,3776.3,3776.2,1.4579]
[1753907329767,24.76439,3776.3,3776.2,6.1759]
[1753907329971,24.2347,3776.3,3776.2,3.662]
[1753907330171,24.2347,3776.3,3776.2,6.1759]
[1753907330574,22.5985,3776.3,3776.2,6.1759]
[1753907330775,21.757,3776.3,3776.2,6.1759]
[1753907330976,20.2546,3776.3,3776.2,6.1759]
[1753907331171,20.2546,3776.3,3776.2,4.6795]
[1753907331172,24.2327,3776.3,3776.2,4.6795]
[1753907331567,24.2327,3776.3,3776.2,2.7487]
[1753907331771,5.5987,3776.0,3775.9,1.4579]
[1753907331968,24.2337,3776.0,3775.9,1.4579]
[1753907332266,24.2337,3776.0,3775.5,1.4964]
[1753907332267,4.7166,3775.4,3775.3,9.3837]
[1753907332575,24.2327,3775.4,3775.3,4.6657]
[1753907333074,24.2327,3775.4,3775.3,5.9565]
[1753907333278,5.5987,3775.4,3775.3,4.6657]
[1753907333479,5.5987,3775.4,3775.3,3.2078]
[1753907333666,5.5987,3775.4,3775.3,4.0619]
[1753907333869,5.5987,3775.4,3775.3,5.9565]
[1753907334078,5.5987,3775.4,3775.3,7.8873]
[1753907334770,3.123,3775.4,3775.3,9.3837]
[1753907334975,1.6206,3775.9,3775.8,6.70565]
[1753907335273,3.9619,3776.0,3775.8,6.70565]
[1753907335576,3.2078,3776.0,3775.8,3.00515]
[1753907335772,3.2078,3776.0,3775.9,6.1759]
[1753907335981,3.3591,3776.1,3776.0,4.35513]
[1753907336176,3.123,3776.1,3776.0,6.70563]
[1753907336679,3.74387,3776.5,3776.4,2.4754]
[1753907336878,4.62597,3776.5,3776.4,3.7662]
[1753907337071,4.62597,3776.5,3776.4,1.4579]
[1753907337274,6.12837,3776.5,3776.4,3.662]
[1753907337672,5.5987,3776.5,3776.4,3.662]
[1753907337877,5.5987,3776.5,3776.4,6.1759]
[1753907338983,0.6034,3776.5,3776.4,6.1759]
[1753907339175,2.3996,3776.5,3776.4,6.1759]
[1753907339370,4.6633,3776.5,3776.4,6.1759]
[1753907340274,5.5705,3776.5,3776.4,6.1759]
[1753907340475,5.5705,3776.5,3776.4,4.6795]
[1753907340680,5.5705,3776.5,3776.4,1.4579]
[1753907341285,5.5705,3776.5,3775.9,2.2571]
[1753907341286,2.4576,3776.2,3775.9,2.2571]
[1753907341479,5.5636,3776.0,3775.9,3.7758]
[1753907341679,5.5636,3776.0,3775.9,4.7423]
[1753907341986,5.5636,3776.0,3775.9,1.5187]
[1753907342973,2.4576,3775.7,3775.6,4.7265]
[1753907343181,5.5636,3775.7,3775.6,4.7265]
[1753907343380,5.5636,3775.7,3775.6,3.2078]
[1753907343592,5.5636,3775.2,3775.1,6.9836]
[1753907343788,5.5636,3775.2,3775.1,4.7265]
[1753907344189,5.5636,3775.2,3775.1,9.4833]
[1753907344190,3.0614,3775.2,3775.1,9.4833]
[1753907344386,5.5636,3775.6,3775.5,2.4852]
[1753907344597,3.0614,3775.6,3775.5,6.2755]
[1753907345190,5.5636,3775.6,3775.5,6.2755]
[1753907345491,5.5636,3775.6,3775.5,4.7423]
[1753907345684,5.5636,3775.6,3775.5,3.7758]
[1753907346287,5.5636,3775.6,3775.5,4.7423]
[1753907347086,5.5636,3775.6,3775.5,6.2755]
[1753907348087,5.5636,3775.6,3775.5,4.7423]
[1753907348286,5.5636,3775.6,3775.5,3.8668]
[1753907348485,0.9072,3775.2,3775.1,3.2078]
[1753907348794,5.5636,3774.9,3774.8,6.67286678]
[1753907349390,5.5636,3774.9,3774.8,0.39736678]
[1753907351889,1.5504,3774.0,3773.9,7.0746]
[1753907352090,3.9037,3774.0,3773.9,9.4833]
[1753907352290,3.0614,3774.0,3773.9,9.4833]
[1753907352494,1.5504,3774.0,3773.9,9.4833]
[1753907352694,0.7527,3774.6,3774.2,1.49648]
[1753907352894,4.58252,3774.6,3774.5,6.2755]
[1753907353296,6.09352,3774.6,3774.5,4.7423]
[1753907353497,6.09352,3774.6,3774.5,6.2755]
[1753907353895,6.09352,3774.6,3774.5,4.7423]
[1753907354095,1.5504,3774.1,3774.0,3.0152]
[1753907354301,3.9037,3774.1,3774.0,4.3968]
[1753907354596,3.9037,3774.1,3774.0,5.93]
[1753907354796,4.6564,3774.1,3774.0,6.2755]
[1753907355597,5.5636,3774.1,3774.0,4.7423]
[1753907355902,5.5636,3774.1,3774.0,6.2755]
[1753907356404,5.5636,3774.1,3774.0,1.5187]
[1753907357097,0.53,3774.0,3773.9,3.2078]
[1753907357301,6.0936,3774.0,3773.9,3.2078]
[1753907357790,2.9876,3774.0,3773.9,1.5187]
[1753907357992,2.9876,3774.0,3773.9,2.9003]
[1753907358198,2.9876,3774.0,3773.9,1.5187]
[1753907358400,6.0936,3774.0,3773.9,1.5187]
[1753907359301,5.5636,3774.0,3773.9,1.5187]
[1753907360701,5.5636,3774.0,3773.9,4.7423]
[1753907360902,5.5636,3774.0,3773.9,6.2755]
[1753907361808,5.5636,3774.0,3773.9,4.7423]
[1753907362407,3.9037,3773.6,3773.5,6.2755]
[1753907362605,5.5636,3773.6,3773.5,4.7423]
[1753907362804,5.5636,3773.6,3773.5,6.2755]
[1753907363104,3.0614,3773.6,3772.8,1.53418885]
[1753907363308,1.32495,3774.2,3773.4,9.4833]
[1753907363309,5.5636,3773.5,3773.4,9.4833]
[1753907363912,6.09367,3773.5,3773.4,4.1358]
[1753907364102,6.09367,3773.5,3773.4,4.7265]
[1753907364303,6.09367,3773.5,3773.4,6.1081]
[1753907364815,6.09367,3773.5,3773.4,2.9003]
[1753907365004,4.0527,3773.2,3773.1,3.8668]
[1753907365204,5.5637,3773.2,3773.1,6.2755]
[1753907365404,3.9037,3773.2,3773.1,6.2755]
[1753907365604,3.0614,3773.2,3773.1,6.2755]
[1753907366213,3.9686,3773.2,3773.1,6.2755]
[1753907366407,5.5637,3773.2,3773.1,6.2755]
[1753907368215,5.5637,3773.2,3773.1,3.8668]
[1753907368615,5.5637,3773.2,3773.1,4.7423]
[1753907368816,5.5637,3773.2,3773.1,6.1691]
[1753907369009,4.7214,3773.2,3773.1,6.1691]
[1753907369219,4.53477,3773.6,3773.5,6.1806]
[1753907369618,6.15477,3773.6,3773.5,4.7538]
[1753907369816,1.0915,3773.3,3773.2,1.3632]
[1753907370017,5.6247,3773.2,3773.1,3.7454]
[1753907370423,5.6247,3773.2,3773.1,1.504]
[1753907370613,5.6247,3772.9,3772.8,4.27556]
[1753907370919,5.6247,3772.9,3772.8,6.71076]
[1753907371113,5.6247,3772.9,3772.8,6.1806]
[1753907371512,3.1103,3772.9,3772.8,6.1806]
[1753907372117,3.9773,3772.9,3772.8,6.1806]
[1753907372513,1.5686,3772.9,3772.8,6.1806]
[1753907372913,6.15482,3773.2,3773.1,2.5124]
[1753907373118,6.15482,3773.2,3773.1,6.1806]
[1753907373923,4.8717,3773.2,3773.1,6.1806]
[1753907374118,1.5417,3773.4,3773.3,1.0084]
[1753907374421,3.1103,3773.4,3773.3,6.1806]
[1753907375418,5.6247,3773.4,3773.3,6.1806]
[1753907375620,5.6247,3773.4,3773.3,4.7538]
[1753907376014,5.6247,3773.4,3773.3,6.1806]
[1753907379212,5.6247,3773.0,3772.9,6.1806]
[1753907381516,4.7303,3773.0,3772.9,6.1806]
[1753907381717,0.53014,3773.1,3773.0,2.5124]
[1753907382022,0.53014,3773.1,3773.0,6.1806]
[1753907382223,3.64044,3773.1,3773.0,6.1806]
[1753907382524,4.50744,3773.1,3773.0,6.1806]
[1753907382815,5.26044,3773.1,3773.0,6.1806]
[1753907384124,6.15484,3773.1,3773.0,6.1806]
[1753907384319,4.53484,3773.1,3773.0,3.8756]
[1753907384524,6.15484,3773.1,3773.0,4.7538]
[1753907384722,6.15484,3773.1,3773.0,6.1806]
[1753907385420,6.15487,3772.8,3772.7,4.7538]
[1753907385722,4.50753,3772.4,3772.3,6.1806]
[1753907385933,6.15493,3772.4,3772.3,3.3906]
[1753907386220,6.15493,3772.4,3772.3,4.7538]
[1753907386626,6.15493,3772.4,3772.3,2.8672]
[1753907386816,6.15493,3772.4,3772.3,4.7538]
[1753907387021,6.15493,3772.4,3772.3,6.1806]
[1753907388028,6.15493,3772.4,3772.0,3.3906]
[1753907388029,2.43187,3772.1,3772.0,3.3906]
[1753907388329,6.15497,3772.1,3772.0,4.7538]
[1753907389125,6.15497,3772.1,3772.0,1.504]
[1753907389533,2.0989,3771.9,3771.8,7.35088283]
[1753907389830,6.155,3771.9,3771.8,7.35088283]
[1753907390019,6.155,3771.9,3771.8,4.14308283]
[1753907390226,6.155,3771.9,3771.8,5.15148283]
[1753907390625,6.155,3771.9,3771.8,6.57828283]
[1753907391333,6.155,3771.9,3771.8,0.39768283]
[1753907391525,6.155,3771.9,3771.8,3.26488283]
[1753907391728,21.7113,3771.9,3771.8,6.57828283]
[1753907392029,18.602,3771.9,3771.8,6.57828283]
[1753907392525,0.53029,3772.0,3771.8,2.91008283]
[1753907392731,21.7113,3772.0,3771.9,6.1806]
[1753907392925,22.5783,3772.0,3771.9,6.1806]
[1753907393126,24.2257,3772.0,3771.9,3.8756]
[1753907393830,24.2257,3772.0,3771.9,4.7538]
[1753907394229,24.2257,3772.0,3758.0,1044.5885707]
[1753907394230,0.53049,3770.6,3770.4,3.28295725]
[1753907394426,21.1499,3770.5,3770.4,8.03675725]
[1753907394627,1.53768,3770.6,3770.5,4.7538]
[1753907394828,0.53048,3770.6,3770.5,4.7538]
[1753907395028,0.53043,3771.0,3770.9,4.7538]
[1753907395330,0.53042,3771.1,3771.0,4.7538]
[1753907395535,0.5304,3771.2,3771.0,2.5124]
[1753907395734,1.0072,3771.2,3771.1,4.7538]
[1753907396031,1.0072,3771.2,3771.1,3.3906]
[1753907396337,1.0072,3771.2,3771.1,6.1806]
[1753907396528,3.2078,3771.3,3771.1,2.5124]
[1753907396733,1.0072,3771.6,3771.5,6.71095]
[1753907396936,4.7495,3771.8,3771.5,3.04275]
[1753907397130,4.7495,3771.8,3771.7,2.5124]
[1753907397426,4.7495,3771.8,3771.7,6.1806]
[1753907397427,5.7567,3771.8,3771.7,6.1806]
[1753907398427,0.53032,3771.7,3771.2,0.53039]
[1753907398629,3.2078,3771.8,3770.1,1.32636]
[1753907398630,0.0095,3770.2,3770.1,5.1934]
[1753907398930,3.2078,3770.7,3770.2,2.2007]
[1753907399131,0.5343,3770.5,3770.4,2.4777]
[1753907399339,0.5343,3770.5,3770.4,6.116]
[1753907399632,0.53054,3770.2,3770.1,6.116]
[1753907399832,3.74274,3770.2,3770.1,6.116]
[1753907400134,3.74994,3770.2,3770.1,6.116]
[1753907400339,3.2078,3770.2,3770.1,6.116]
[1753907400528,3.2194,3770.2,3770.1,4.8379]
[1753907400735,3.2219,3770.2,3770.1,4.8379]
[1753907401642,3.2078,3770.2,3770.1,6.116]
[1753907401940,3.75033,3770.2,3770.1,6.116]
[1753907402235,0.0025,3770.0,3769.4,1.2781]